Cogmind - Beta 13 @@@ ROGUE MODE // 2024.04.01 @ 04:49:14 Player: Luca Result: Destroyed by G-34 Mercenary with Small Laser Performance ------------- Evolutions (1) 500 Regions Visited (3) 600 Robots Destroyed (50) 250 Value Destroyed (1300) 1300 Prototype IDs (1) 20 Alien Tech Used (0) 0 Bonus (40) 40 TOTAL SCORE: 2710 Bonus ------- Follower Combat Kills 40 Cogmind --------- Core Integrity 0/400 Matter 166/300 Energy 100/100 System Corruption 0% Temperature Cool (6) Movement Core (700) Ox13 Location -9/Materials Parts ------- > --- POWER (1) -------- (None) > --- PROPULSION (2) --- (None) > --- UTILITY (4) ------ High-capacity Storage Unit Power Shielding > --- WEAPON (2) ------- (None) > --- INVENTORY (20) --- Flight Unit Flight Unit Improved Heat Sink Improved Heat Sink High-capacity Storage Unit Large Matter Pod (82) Visual Processing Unit Experimental Sensor Array Utility Shielding Weapon Shielding Tractor Beam Sensor Drone Bay Particle Gun Beamcaster Plasma Cutter Hammer Peak State ------------ > --- POWER ------------ Ion Engine > --- PROPULSION ------- Improved Aluminum Leg Improved Aluminum Leg > --- UTILITY ---------- Improved Heat Sink High-capacity Storage Unit Power Shielding Light Armor Plating > --- WEAPON ----------- Beamcaster Shotgun > --- INVENTORY -------- Improved Aluminum Leg Improved Aluminum Leg Flight Unit Flight Unit Improved Heat Sink High-capacity Storage Unit Medium Matter Pod Experimental Sensor Array Utility Shielding Weapon Shielding Backup Plating I Tractor Beam Sensor Drone Bay Heavy EM Pulse Gun Particle Gun Shotgun Grenade Launcher Plasma Cutter Hammer [Rating: 22] Favorites ----------- Power Light Ion Engine Engine Light Ion Engine Propulsion Improved Aluminum Leg Leg Improved Aluminum Leg Wheel Wheel Flight Unit Flight Unit Utility High-capacity Storage Unit Device Improved Heat Sink Storage High-capacity Storage Unit Processor Visual Processing Unit Protection Light Armor Plating Weapon Shotgun Energy Gun Beamcaster Ballistic Gun Shotgun Launcher Grenade Launcher Special Weapon Plasma Cutter Impact Weapon Hammer Build | -11 -10 -10 -9 ------- Run | Yrd Mat Min Mat Slots Evolved 2 | . . . 2 Power . | . . . . Propulsion . | . . . . Utility 2 | . . . 2 Weapon . | . . . . Parts Attached 71 | 17 30 2 22 Power 6 | 2 3 . 1 Engine 6 | 2 3 . 1 Core . | . . . . Reactor . | . . . . Propulsion 19 | 9 8 . 2 Treads . | . . . . Leg 12 | 4 6 . 2 Wheel 5 | 5 . . . Hover . | . . . . Flight 2 | . 2 . . Utility 13 | 2 5 . 6 Device 4 | 2 . . 2 Storage 3 | . 2 . 1 Processor 1 | . 1 . . Hackware . | . . . . Protection 5 | . 2 . 3 Artifact . | . . . . Weapon 33 | 4 14 2 13 Energy Gun 10 | 2 2 . 6 Energy Cannon . | . . . . Ballistic Gun 9 | 2 3 1 3 Ballistic Cannon . | . . . . Launcher 9 | . 5 1 3 Special Weapon 1 | . . . 1 Impact Weapon 4 | . 4 . . Slashing Weapon . | . . . . Piercing Weapon . | . . . . Special Melee Weapon . | . . . . Unidentified Prototypes . | . . . . Parts Lost 10 | . 1 . 9 Power 1 | . . . 1 Propulsion 2 | . . . 2 Utility 2 | . . . 2 Weapon 5 | . 1 . 4 Highest Loss Streak 9 | . 1 . 9 To Critical Strikes . | . . . . Average Slot Usage (%) 99 | . 100 100 96 Engine 13 | . 14 14 10 Leg 26 | . 28 28 21 Device 4 | . 3 . 10 Storage 12 | . 12 14 11 Processor 3 | . 7 . . Protection 11 | . 4 14 21 Energy Gun 3 | . . . 12 Ballistic Gun 14 | . 10 27 5 Launcher 4 | . 8 . 1 Impact Weapon 3 | . 8 . . Naked Turns . | . . . . Heaviest Build 59 | 10 52 52 59 Greatest Support 26 | 20 26 26 26 Greatest Overweight (x) 2 | . 2 1 2 Average Overweight (x) 1 | . 1 1 1 Largest Inventory Capacity 20 | 5 20 20 20 Average Capacity 17 | 5 16 20 20 Most Carried 20 | 5 20 20 20 Average Carried 15 | 2 12 19 19 Final Capacity 20 | 5 20 20 20 Final Carried 20 | 4 20 20 16 Class Distribution -------------------- 85% | Mutant 14% | Scavenger-Mutant Dominant Class ---------------- Mutant | -10/Materials Mutant | -10/Mines Mutant | -9/Materials Resources | -11 -10 -10 -9 ----------- Run | Yrd Mat Min Mat Matter Collected 1329 | 382 236 183 528 Remotely . | . . . . Salvage Created 1283 | 117 220 198 748 Parts 98 | 10 27 7 54 Haulers Intercepted . | . . . . Recyclers Shooed 1 | . . . 1 Parts Field Recycled . | . . . . Retrieved Matter . | . . . . Parts Self-Destructed . | . . . . Prevented . | . . . . Kills | -11 -10 -10 -9 ------- Run | Yrd Mat Min Mat Combat Hostiles Destroyed 39 | 1 10 5 23 Guns 20 | 1 2 2 15 AOE 19 | . 8 3 8 Classes Destroyed 7 | 3 3 . 1 Worker 4 | 1 . . 3 Builder 2 | . 1 . 1 Tunneler 2 | 2 . . . Watcher 3 | . 2 . 1 Swarmer 10 | . 5 . 5 Grunt 26 | 1 5 5 15 Sentry 3 | . . . 3 Best Kill Streak 7 | 1 7 3 4 Combat Bots Only 6 | 1 6 3 4 Max Kills in Single Turn 4 | 1 4 2 2 Gunslinging 1 | . . . 1 Exploded 3 | . 3 2 2 Melee . | . . . . Uniques/NPCs Destroyed . | . . . . Combat | -11 -10 -10 -9 -------- Run | Yrd Mat Min Mat Hostile Shots Fired 245 | 4 42 5 194 Missed 86 | 1 23 1 61 Damage Taken 1989 | 33 305 47 1604 Core 432 | 11 18 . 403 Absorbed by Shields . | . . . . Redirected to Shielding 24 | . . . 24 Regen/Repaired (Parts) 36 | . 36 . . Core Remaining (%) 91 | 95 . 88 . Volleys Fired 100 | 15 20 5 60 Largest 2 | 2 2 2 2 Hottest 140 | 60 65 53 140 Shots Fired 162 | 19 24 10 109 Gun 142 | 19 18 8 97 Cannon . | . . . . Launcher 20 | . 6 2 12 Special . | . . . . Kinetic 61 | 4 16 8 33 Thermal 77 | 11 2 . 64 Explosive 20 | . 6 2 12 Electromagnetic 4 | 4 . . . Robot Hit Streak 6 | 5 3 4 6 Robot Miss Streak 5 | 2 5 1 4 Penetration Max . | . . . . Secondary Targets 3 | . . . 3 Max Gunslinging Chain 1 | . . . 1 Shots Hit Robots 85 | 11 12 9 53 Core Hits 77 | 5 14 11 47 Critical Kills . | . . . . Critical Parts Destroyed 2 | . 1 . 1 Critical Strikes 7 | . 1 . 6 Burn 5 | . . . 5 Destroy 1 | . . . 1 Smash 1 | . 1 . . Melee Attacks 6 | . 6 . . Impact 6 | . 6 . . Slashing . | . . . . Piercing . | . . . . Sneak Attacks . | . . . . Combat Hostiles . | . . . . Follow-up Attacks . | . . . . Damage Inflicted 2696 | 152 736 293 1515 Guns 1243 | 152 84 116 891 Cannons . | . . . . Explosions 1381 | . 581 177 623 Melee 71 | . 71 . . Ramming 1 | . . . 1 Kinetic 617 | 24 84 116 393 Thermal 747 | 77 172 . 498 Explosive 1209 | . 409 177 623 Electromagnetic 51 | 51 . . . Impact 71 | . 71 . . Slashing . | . . . . Piercing . | . . . . Highest Corruption . | . . . . Average Corruption . | . . . . Corruption Purged . | . . . . Corruption Blocked . | . . . . Overload Shots . | . . . . Overflow Damage 69 | . 58 4 7 Projectiles . | . . . . Explosions 53 | . 42 4 7 Melee 16 | . 16 . . Knockbacks 1 | . 1 . . Impact 1 | . 1 . . Kinetic . | . . . . Secondary . | . . . . Self-Inflicted Damage 109 | . 109 . . Shots 2 | . 2 . . Rammed . | . . . . Targets Rammed 1 | . . . 1 Kicked 1 | . . . 1 Crushed . | . . . . Highest Temperature 114 | 18 48 19 114 Average Temperature 26 | 12 18 15 29 Received Heat Transfer 912 | 18 78 27 789 Siege Activations . | . . . . Robots Corrupted . | . . . . Combat Hostiles . | . . . . Parts Fried 1 | . 1 . . Impact Corruptions 1 | . 1 . . Robots Melted . | . . . . Combat Hostiles . | . . . . Parts Melted 2 | . . . 2 Heat Transferred 1644 | 175 100 . 1369 Parts Sabotaged . | . . . . Parts Stolen . | . . . . Parts Stripped . | . . . . Power Chain Reactions . | . . . . Alert | -11 -10 -10 -9 ------- Run | Yrd Mat Min Mat Peak Influence 390 | 35 262 73 390 Initial 22 | . 22 . . Average 88 | 16 97 40 144 Maximum Alert Level 1 | . 1 . 1 Low Security (%) 88 | 100 82 100 83 Level 1 11 | . 17 . 16 Level 2 . | . . . . Level 3 . | . . . . Level 4 . | . . . . Level 5 . | . . . . High Security . | . . . . Max Security . | . . . . Squads Dispatched 6 | . 2 . 4 Investigation 2 | . . . 2 Extermination . | . . . . Reinforcement 4 | . 2 . 2 Assault . | . . . . Garrison . | . . . . Intercept . | . . . . Searches Triggered . | . . . . Construction Impeded . | . . . . Haulers Reinforced . | . . . . Active Scanning Responses . | . . . . Cargo Convoy Interrupts . | . . . . Stealth | -11 -10 -10 -9 --------- Run | Yrd Mat Min Mat Distress Signals 7 | . 1 . 6 Communications Jammed . | . . . . Distress Signals . | . . . . Times Spotted 73 | 1 25 2 45 Peak Tracking Total 7 | 1 7 2 7 Tactical Retreats 3 | . 1 . 2 Traps | -11 -10 -10 -9 ------- Run | Yrd Mat Min Mat Traps Triggered . | . . . . Indirectly . | . . . . Trap Hack Attempts . | . . . . Triggered . | . . . . Disarmed . | . . . . Reprogrammed . | . . . . Reused . | . . . . Traps Extracted . | . . . . Installed . | . . . . Triggered . | . . . . Machines | -11 -10 -10 -9 ---------- Run | Yrd Mat Min Mat Machines Disabled 4 | . 3 . 1 Max in Single Turn 2 | . 2 . 1 Machines Repaired . | . . . . Machines Dismantled 1 | . . . 1 Machines Sabotaged . | . . . . Overloaded Fab Kills . | . . . . Hacking | -11 -10 -10 -9 --------- Run | Yrd Mat Min Mat Machines Accessed 9 | . 5 1 3 Terminals 5 | . 3 . 2 Fabricators . | . . . . Repair Stations 1 | . 1 . . Recycling Units 1 | . 1 . . Scanalyzers 1 | . . . 1 Garrison Access . | . . . . Total Hacks 26 | . 16 1 9 Successful 21 | . 14 1 6 Failed 5 | . 2 . 3 Catastrophic 1 | . 1 . . Database Lockouts . | . . . . Manual . | . . . . Terminals 10 | . 6 . 4 Fabricators . | . . . . Repair Stations 3 | . 3 . . Recycling Units 7 | . 7 . . Scanalyzers 5 | . . . 5 Garrison Access . | . . . . Terminal Hacks 9 | . 6 1 2 Record 4 | . 2 . 2 Robot Analysis 1 | . 1 . . Open Door 1 | . . 1 . Alert Level 3 | . 3 . . Fabricator Hacks . | . . . . Repair Station Hacks 2 | . 2 . . Scan Component 1 | . 1 . . Repair 1 | . 1 . . Recycling Unit Hacks 6 | . 6 . . Recycle Component 2 | . 2 . . Process 2 | . 2 . . Report Inventory 1 | . 1 . . Retrieve Components 1 | . 1 . . Scanalyzer 4 | . . . 4 Insert Component 2 | . . . 2 Analyze 2 | . . . 2 Garrison Access Hacks . | . . . . Unauthorized Hacks . | . . . . Terminals . | . . . . Fabricators . | . . . . Repair Stations . | . . . . Recycling Units . | . . . . Scanalyzers . | . . . . Garrison Access . | . . . . Data Cores Recovered . | . . . . Used . | . . . . Hacking Detections 6 | . 3 . 3 Full Trace Events 4 | . 2 . 2 Feedback Events . | . . . . Feedback Blocked . | . . . . Robot Schematics Acquired . | . . . . Robots Built . | . . . . Authchips . | . . . . Time . | . . . . Total Robot Build Rating . | . . . . Part Schematics Acquired . | . . . . Parts Built . | . . . . Authchips . | . . . . Time . | . . . . Total Part Build Rating . | . . . . Parts Repaired 1 | . 1 . . Time 26 | . 26 . . Parts Recycled 2 | . 2 . . Recycled Matter 47 | . 47 . . Retrieved Matter . | . . . . Retrieved Components . | . . . . Parts Scanalyzed 1 | . . . 1 Part Schematics Acquired . | . . . . Parts Damaged . | . . . . Bothacking | -11 -10 -10 -9 ------------ Run | Yrd Mat Min Mat Used RIF Installer . | . . . . Robots Hacked . | . . . . Non-combat . | . . . . Combat . | . . . . Robot Hacks Applied . | . . . . Relay Couplers Released . | . . . . Fabnet Peak Effective % . | . . . . Robots Rewired . | . . . . Allies Hacked . | . . . . Hacks Repelled . | . . . . Allies | -11 -10 -10 -9 -------- Run | Yrd Mat Min Mat Total Allies 2 | . . 2 . Largest Group 2 | . . 2 2 Highest-Rated Group 49 | . . 49 49 Highest-Rated Ally 31 | . . 31 31 Total Orders . | . . . . Ally Attacks 10 | . . . 10 Total Damage 105 | . . . 105 Kills 2 | . . . 2 Allies Corrupted . | . . . . Allies Melted . | . . . . Intel | -11 -10 -10 -9 ------- Run | Yrd Mat Min Mat Robot Analysis Total 1 | . 1 . . Derelict Logs Recovered 1 | . . 1 . Drone Launches . | . . . . Drone Recoveries . | . . . . Exploration | -11 -10 -10 -9 ------------- Run | Yrd Mat Min Mat Turns Passed 4990 | 285 2109 1356 1240 Spaces Moved 2224 | 173 967 697 387 Core 45 | 45 . . . Treads . | . . . . Legs 2177 | 126 967 697 387 Wheels 2 | 2 . . . Hover . | . . . . Flight . | . . . . Fastest Speed 50 | 50 120 190 190 Average Speed 196 | 101 197 190 247 Slowest Speed 260 | 120 260 190 260 Overloaded Moves . | . . . . Propulsion Burnouts . | . . . . Robots Hopped . | . . . . Cave-ins Triggered . | . . . . Exploration Rate (%) 57 | 11 85 96 36 Regions Visited 3 Branch Regions 1 Pre-discovered Areas 1 | . . 1 . Known Exits Taken . | . . . . Unknown Exits Taken 3 | 1 1 1 . Scrap Searched 1 | . . 1 . Spaces Dug . | . . . . Terrain Destroyed 150 | . 49 21 80 Melee . | . . . . Projectile 1 | . . . 1 AOE 149 | . 49 21 79 Terrain Rammed . | . . . . Walls Destroyed . | . . . . Machines Disabled . | . . . . Actions | -11 -10 -10 -9 --------- Run | Yrd Mat Min Mat Total 2662 | 261 1133 722 546 Wait 167 | 40 59 13 55 Move 2221 | 172 966 696 387 Hop . | . . . . Pick Up 59 | 13 36 3 7 Fast Attach . | . . . . Attach 21 | 9 5 . 7 Detach 4 | 2 . . 2 Swap 50 | 8 25 2 15 Drop 28 | 2 16 3 7 Fire 100 | 15 20 5 60 Melee 6 | . 6 . . Ram . | . . . . Kick 1 | . . . 1 Crush . | . . . . Escape Stasis . | . . . . Rewire . | . . . . Trap . | . . . . Miscellaneous 5 | . . . 5 Route ------- -11/Scrapyard -10/Materials (discovered 5 exits: *Mat x3 / *Min / [*Sub]) -10/Mines (discovered 2 exits: *Mat x2) -9/Materials (discovered 3 exits: [*Mat] / [*Min] / [*Sto]) History --------- Turn | Location | Event 2 | -11/Scrapyard | Met Revision 17 103 | -11/Scrapyard | Discovered new exit (range 8) 286 | -11/Scrapyard | Entered Materials 306 | -10/Materials | Build established: Scavenger-Mutant 446 | -10/Materials | Discovered new exit (range 14) 640 | -10/Materials | Discovered new exit (range 16) 693 | -10/Materials | Repaired Grenade Launcher 816 | -10/Materials | Build established: Mutant 1468 | -10/Materials | Discovered new exit (range 16) 1978 | -10/Materials | Discovered new exit (range 8) 2279 | -10/Materials | Discovered new exit (range 10) 2395 | -10/Materials | Entered Mines 2717 | -10/Mines | Found the Drone Emporium 2729 | -10/Mines | Found Prototype Device 2784 | -10/Mines | Found a hidden stash of uninstalled traps 2793 | -10/Mines | Discovered new exit (range 16) 3082 | -10/Mines | Found a damaged Exp. Sensor Array with a note attached 3086 | -10/Mines | Found Prototype Device 3213 | -10/Mines | Assisted by bots powering up and referring to "LRC-V3" 3399 | -10/Mines | Discovered new exit (range 9) 3751 | -10/Mines | Entered Materials 3751 | -9/Materials | Accompanied by 2 allies 3751 | -9/Materials | Evolved 2 slots: Utility x2 3756 | -9/Materials | Led the pair of lost Derelicts to an unsafe place 3849 | -9/Materials | Discovered new exit (range 10) 4166 | -9/Materials | Discovered new exit (range 15) 4749 | -9/Materials | Identified Exp. Sensor Array 4806 | -9/Materials | Discovered new exit (range 16) 4966 | -9/Materials | Core integrity fell below 50% 4980 | -9/Materials | Core integrity fell below 20% 4991 | -9/Materials | Destroyed by G-34 Mercenary with Small Laser Last Messages --------------- wheel, '.', or KP5. Also make sure your per-turn energy generation is a net positive, and consider deactivating power-draining parts if not. K-01 Serf collects debris. R-06 Scavenger collects Heat Sink. R-06 Scavenger collects Aluminum Leg. Hvy. EM Pulse Gun destroyed. K-01 Serf collects debris. G-47 Trooper destroyed. K-01 Serf collects debris. R-06 Scavenger collects Aluminum Leg. R-06 Scavenger collects Heat Sink. K-01 Serf collects debris. Cooling System destroyed. R-06 Scavenger collects Particle Gun. K-01 Serf collects debris. R-06 Scavenger collects Sml. Laser. K-01 Serf collects debris. [Achievement: First Step to Greatness] Map ----- +----------------------------------------------------+ | ?? """??????????????????????# ""#???????????? | | # ""???????????????????????# "#???????????? | | # ?????????????????????????## ###????????????? | | + ????????????????????????????# #??????????????? | | #?????????????????????????????# #??????????????? | | #?????????????????????????????? ???????????????? | | #????????????????????????????????????????????????? | | #????????????????????????????????????????????????? | | #????????????????????????????????????????????????? | | ###??????????????????????????????????????????????? | | #??????????????????????????????????????????????? | | #?####?#####???????????????????????????????????? | | #?# ? #???????????????????????????????????? | | #?# """ #???????????????????????????????????? | | #?# """ #??????????????????? ???????????????? | | #?# """ #?#####???????????? #??????????????? | | [ #?# #?# ############ ##?????????????? | | #?# """ #?# ##????????????? | | ###?# """ #?# a ^ C ????????????? | | #???# """ #?# ^ ?????????????? | | #???# #?# === """ """?????????????? | | #?### # #??# =!= """ """?????????????? | | ### ### #### =!= m """ """"" #????????? | | %[ % r????????? | | ==* g gk %[ r #????????? | | = m =%@ #????????? | | #### ##### #####+########/??????????? | | #??## # ## #???# #????? =?????????????????? | | #???### ####???# #??????? #???????????????? | | #?????####??????# #????????#???????????????? | | #???????????????# #????????????????????????? | | ????????????????# #????????????????????????? | | ????????????????# ???????????????????????? | | ????????????????# #??????????????????????? | | ????????????????# " #??????????????????????? | | ????????????????# "" #??????????????????????? | | ????????????????# "" #??????????????????????? | | ????????????????# """ ???????????????????????? | | ????????????????? ??? ????????????????????????? | | ?????????????????????????????????????????????????? | | ?????????????????????????????????????????????????? | | ?????????????????????????????????????????????????? | | ?????????????????????????????????????????????????? | | ?????????????????????????????????????????????????? | | ?????????????????????????????????????????????????? | | ?????????????????????????????????????????????????? | | ?????????????????????????????????????????????????? | | ?????????????????????????????????????????????????? | | ?????????????????????????????????????????????????? | | | +----------------------------------------------------+ Best States ------------- Heat Dissipation 50 Energy Generation 10 Energy Capacity 250 Matter Stores 300 Matter Capacity 350 Sight Range 18 Terrain Scan Range 16 Terrain Scan Density 10 Armor Coverage 150 Power Shielding 33 Utility Shielding 33 Evasion (%) 55 Item Schematics ----------------- None Robot Schematics ------------------ None Fabricated ------------ Nothing Alien Tech Used ----------------- None Achievements -------------- Dramatic Entrance First Step to Greatness One Hack Too Far Part-time Mechanic Safety First Storm Trooper Uninvited Guest Challenges ------------ None Game ------ Seed SwarmExoskeletonPurifier Manual? 0 Play Time 01:55:02 Cumulative 1.9 hours Start 2024.04.01 @ 02:39:35 End 2024.04.01 @ 04:49:14 Sessions 1 Manual Loads 0 Difficulty Rogue Special Mode None Game No. 1 Rogue 1 Adventurer 0 Explorer 0 Win Type - Total 0 Types 0/0/0/0/0/0/0/0/0 Lore% 0 Gallery% 2 Achievement% 2 Wizard Run 0 Options --------- Layout 1 ASCII 1 Keyboard 0 Movement Mouse Keybinds 0 Fullscreen 2 Font 24/Tallcaps Map View 50x35 Zoom Use 11% Tactical HUD 0 Map Filters NONE Filters NONE Steam 1 RUN: 9e1bca8a-4dfd-4dd9-94de-ecf43c734b36